fUST/lending_fUST_20240824
["ID","MTS","AMOUNT","RATE_DAILY","PERIOD"]
[335704880,1724455764558,-500.0,0.00013698,2]
[335704881,1724455764579,-1479.86,0.00013698,2]
[335704882,1724455764600,-500.0,0.00013698,2]
[335704883,1724455764624,-9754.94853503,0.00013698,2]
[335704884,1724455765631,-13559.41146497,0.00013698,2]
[335704885,1724455765653,-500.0,0.00013698,2]
[335704886,1724455765675,-500.0,0.00013698,2]
[335704887,1724455765697,-500.0,0.00013698,2]
[335704888,1724455765719,-500.0,0.00013698,2]
[335704889,1724455765740,-500.0,0.00013698,2]
[335704890,1724455765762,-500.0,0.00013698,2]
[335704891,1724455765785,-1306.66,0.00013698,2]
[335704892,1724455765807,-500.0,0.00013698,2]
[335704893,1724455765828,-500.0,0.00013698,2]
[335704894,1724455765853,-930.43,0.00013698,2]
[335704895,1724455765875,-500.0,0.00013698,2]
[335704896,1724455765896,-500.0,0.00013698,2]
[335704897,1724455765919,-775.6,0.00013698,2]
[335704898,1724455765941,-500.0,0.00013698,2]
[335704899,1724455765963,-2943.97,0.00013698,2]
[335704900,1724455765985,-500.0,0.00013698,2]
[335704901,1724455766006,-500.0,0.00013698,2]
[335704902,1724455766029,-508.49725446,0.00013698,2]
[335704903,1724455766055,-7209.05781072,0.00013698,2]
[335704904,1724455766421,-7465.15218928,0.00013698,2]
[335704905,1724455766442,-500.0,0.00013698,2]
[335704906,1724455766463,-766.35,0.00013698,2]
[335704907,1724455766484,-500.0,0.00013698,2]
[335704908,1724455766505,-542.41031267,0.00013698,2]
[335704909,1724455766525,-500.0,0.00013698,2]
[335704910,1724455766546,-430.23889698,0.00013698,2]
[335704911,1724455766566,-500.0,0.00013698,2]
[335704912,1724455766588,-1593.51,0.00013698,2]
[335704913,1724455766608,-500.0,0.00013698,2]
[335704914,1724455766633,-575.63845928,0.00013698,2]
[335704915,1724455766653,-500.0,0.00013698,2]
[335704916,1724455766673,-500.0,0.00013698,2]
[335704917,1724455766695,-500.0,0.00013698,2]
[335704918,1724455766716,-500.0,0.00013698,2]
[335704919,1724455766736,-500.0,0.00013698,2]
[335704920,1724455766757,-500.0,0.00013698,2]
[335704921,1724455766777,-980.03,0.00013698,2]
[335704922,1724455766813,-500.0,0.00013698,2]
[335704923,1724455766838,-882.99,0.00013698,2]
[335704924,1724455766859,-291.90426165,0.00013698,2]
[335704925,1724455766884,-500.0,0.00013698,2]
[335704926,1724455766906,-1781.72,0.00013698,2]
[335704927,1724455766929,-500.0,0.00013698,2]
[335704928,1724455766949,-509.13193573,0.00013698,2]
[335704929,1724455766971,-500.0,0.00013698,2]
[335704930,1724455766997,-11021.11,0.00013698,2]
[335704931,1724455767019,-4009.19,0.00013698,2]
[335704932,1724455767041,-1114.57,0.00013698,2]
[335704933,1724455767061,-1704.29,0.00013698,2]
[335704934,1724455767082,-500.0,0.00013698,2]
[335704935,1724455767103,-500.0,0.00013698,2]
[335704936,1724455767124,-293.25902441,0.00013698,2]
[335704937,1724455767144,-500.0,0.00013698,2]
[335704938,1724455767164,-500.0,0.00013698,2]
[335704939,1724455767185,-943.07,0.00013698,2]
[335704940,1724455767205,-916.61,0.00013698,2]
[335704941,1724455767226,-865.73,0.00013698,2]
[335704942,1724455767247,-500.0,0.00013698,2]
[335704943,1724455767268,-500.0,0.00013698,2]
[335704944,1724455767289,-500.0,0.00013698,2]
[335704945,1724455767310,-500.0,0.00013698,2]
[335704946,1724455767332,-3290.49,0.00013698,2]
[335704947,1724455767353,-500.0,0.00013698,2]
[335704948,1724455767376,-500.0,0.00013698,2]
[335704949,1724455767399,-9931.48,0.00013698,2]
[335704950,1724455767420,-3108.59,0.00013698,2]
[335704951,1724455767441,-2096.13,0.00013698,2]
[335704952,1724455767462,-895.85,0.00013698,2]
[335704953,1724455767489,-500.0,0.00013698,2]
[335704954,1724455767511,-500.0,0.00013698,2]
[335704955,1724455767534,-500.0,0.00013698,2]
[335704956,1724455767557,-6033.66,0.00013698,2]
[335704957,1724455767579,-500.0,0.00013698,2]
[335704958,1724455767601,-500.0,0.00013698,2]
[335704959,1724455767626,-500.0,0.00013698,2]
[335704960,1724455767647,-1421.47,0.00013698,2]
[335704961,1724455767669,-500.0,0.00013698,2]
[335704962,1724455767692,-500.0,0.00013698,2]
[335704963,1724455767713,-500.0,0.00013698,2]
[335704964,1724455767735,-500.0,0.00013698,2]
[335704965,1724455767757,-500.0,0.00013698,2]
[335704966,1724455767778,-500.0,0.00013698,2]
[335704967,1724455767800,-500.0,0.00013698,2]
[335704968,1724455767821,-500.0,0.00013698,2]
[335704969,1724455767846,-500.0,0.00013698,2]
[335704970,1724455768095,-500.0,0.00013698,2]
[335704971,1724455768119,-500.0,0.00013698,2]
[335704972,1724455768140,-500.0,0.00013698,2]
[335704973,1724455768161,-1042.75,0.00013698,2]
[335704974,1724455768181,-2031.78,0.00013698,2]
[335704975,1724455768203,-2262.95,0.00013698,2]
[335704976,1724455768224,-546.49,0.00013698,2]
[335704977,1724455768245,-500.0,0.00013698,2]
[335704978,1724455768265,-500.0,0.00013698,2]
[335704979,1724455768287,-500.0,0.00013698,2]
[335704980,1724455768308,-500.0,0.00013698,2]
[335704981,1724455768330,-503.40141786,0.00013698,2]
[335704982,1724455768351,-600.38,0.00013698,2]
[335704983,1724455768373,-500.0,0.00013698,2]
[335704984,1724455768394,-2416.04,0.00013698,2]
[335704985,1724455768415,-500.0,0.00013698,2]
[335704986,1724455768435,-1116.98,0.00013698,2]
[335704987,1724455768456,-669.09,0.00013698,2]
[335704988,1724455768476,-509.00803805,0.00013698,2]
[335704989,1724455768497,-500.0,0.00013698,2]
[335704990,1724455768518,-5067.41,0.00013698,2]
[335704991,1724455768538,-599.92979975,0.00013698,2]
[335704992,1724455768559,-2910.55,0.00013698,2]
[335704993,1724455768581,-500.0,0.00013698,2]
[335704994,1724455768602,-500.0,0.00013698,2]
[335704995,1724455768625,-704.86,0.00013698,2]
[335704996,1724455768647,-500.0,0.00013698,2]
[335704997,1724455768669,-500.0,0.00013698,2]
[335704998,1724455768690,-694.81,0.00013698,2]
[335704999,1724455768711,-771.88,0.00013698,2]
[335705000,1724455768732,-500.0,0.00013698,2]
[335705001,1724455768753,-748.43,0.00013698,2]
[335705002,1724455768775,-3421.28,0.00013698,2]
[335705003,1724455768797,-549.9,0.00013698,2]
[335705004,1724455768820,-500.0,0.00013698,2]
[335705005,1724455768847,-2002.78,0.00013698,2]
[335705006,1724455768870,-501.19470652,0.00013698,2]
[335705007,1724455768907,-500.0,0.00013698,2]
[335705008,1724455768939,-500.0,0.00013698,2]
[335705009,1724455768963,-500.0,0.00013698,2]
[335705010,1724455768988,-500.0,0.00013698,2]
[335705011,1724455769012,-13081.0,0.00013698,2]
[335705012,1724455769035,-1009.39,0.00013698,2]
[335705013,1724455769059,-2347.92,0.00013698,2]
[335705014,1724455769081,-500.0,0.00013698,2]
[335705015,1724455769104,-500.0,0.00013698,2]
[335705016,1724455769137,-343.11003911,0.00013698,2]
[335705017,1724455769161,-500.0,0.00013698,2]
[335705018,1724455769183,-530.99285438,0.00013698,2]
[335705019,1724455769206,-1051.02,0.00013698,2]
[335705020,1724455769228,-500.0,0.00013698,2]
[335705021,1724455769250,-500.0,0.00013698,2]
[335705022,1724455769272,-500.0,0.00013698,2]
[335705023,1724455769293,-500.0,0.00013698,2]
[335705024,1724455769319,-2171.54,0.00013698,2]
[335705025,1724455769342,-500.0,0.00013698,2]
[335705026,1724455769364,-516.53,0.00013698,2]
[335705027,1724455769391,-500.0,0.00013698,2]
[335705028,1724455769413,-1845.97,0.00013698,2]
[335705029,1724455769434,-13903.73,0.00013698,2]
[335705030,1724455769456,-899.34,0.00013698,2]
[335705031,1724455769479,-500.0,0.00013698,2]
[335705032,1724455769501,-500.0,0.00013698,2]
[335705033,1724455769523,-2367.51,0.00013698,2]
[335705034,1724455769545,-500.0,0.00013698,2]
[335705035,1724455769566,-500.0,0.00013698,2]
[335705036,1724455769591,-500.0,0.00013698,2]
[335705037,1724455769614,-500.0,0.00013698,2]
[335705038,1724455769638,-500.0,0.00013698,2]
[335705039,1724455769662,-500.0,0.00013698,2]
[335705040,1724455769684,-1458.33,0.00013698,2]
[335705041,1724455769707,-749.77,0.00013698,2]
[335705042,1724455769729,-2162.13,0.00013698,2]
[335705043,1724455769751,-504.87519166,0.00013698,2]
[335705044,1724455769773,-763.05,0.00013698,2]
[335705045,1724455769801,-6686.95,0.00013698,2]
[335705046,1724455769826,-524.15852355,0.00013698,2]
[335705047,1724455769854,-500.0,0.00013698,2]
[335705048,1724455769879,-2016.03,0.00013698,2]
[335705049,1724455769901,-500.0,0.00013698,2]
[335705050,1724455769927,-500.0,0.00013698,2]
[335705051,1724455769952,-449.26554238,0.00013698,2]
[335705052,1724455769975,-500.0,0.00013698,2]
[335705053,1724455769997,-986.58,0.00013698,2]
[335705054,1724455770021,-500.0,0.00013698,2]
[335705055,1724455770044,-690.91,0.00013698,2]
[335705056,1724455770065,-500.0,0.00013698,2]
[335705057,1724455770089,-541.48619213,0.00013698,2]
[335705058,1724455770117,-668.04,0.00013698,2]
[335705059,1724455770142,-500.0,0.00013698,2]
[335705060,1724455770167,-983.5,0.00013698,2]
[335705061,1724455770190,-500.0,0.00013698,2]
[335705062,1724455770213,-3307.37,0.00013698,2]
[335705063,1724455770237,-3307.37,0.00013698,2]
[335705064,1724455770258,-500.0,0.00013698,2]
[335705065,1724455770281,-3307.37,0.00013698,2]
[335705066,1724455770304,-3307.37,0.00013698,2]
[335705067,1724455770328,-3307.37,0.00013698,2]
[335705068,1724455770350,-500.0,0.00013698,2]
[335705069,1724455770376,-3307.37,0.00013698,2]
[335705070,1724455770398,-3307.37,0.00013698,2]
[335705071,1724455770423,-3307.37,0.00013698,2]
[335705072,1724455770447,-3307.37,0.00013698,2]
[335705073,1724455770677,-500.0,0.00013698,2]
[335705074,1724455770701,-3307.37,0.00013698,2]
[335705075,1724455770722,-3307.37,0.00013698,2]
[335705076,1724455770743,-500.0,0.00013698,2]
[335705077,1724455770764,-3307.37,0.00013698,2]
[335705078,1724455770786,-3307.37,0.00013698,2]
[335705079,1724455770810,-5007.28,0.00013698,2]
[335705080,1724455770836,-3307.37,0.00013698,2]
[335705081,1724455770859,-3760.76,0.00013698,2]
[335705082,1724455770881,-3307.37,0.00013698,2]
[335705083,1724455770902,-500.0,0.00013698,2]
[335705084,1724455770924,-3307.37,0.00013698,2]
[335705085,1724455770945,-1315.72,0.00013698,2]
[335705086,1724455770966,-1425.47,0.00013698,2]
[335705087,1724455770986,-602.90049123,0.00013698,2]
[335705088,1724455771572,-2704.46950877,0.00013698,2]
[335705089,1724455771595,-748.32,0.00013698,2]
[335705090,1724455771620,-3307.37,0.00013698,2]
[335705091,1724455771642,-900.11,0.00013698,2]
[335705092,1724455771666,-3307.37,0.00013698,2]
[335705093,1724455771687,-3307.37,0.00013698,2]
[335705094,1724455771713,-500.0,0.00013698,2]
[335705095,1724455771740,-3307.37,0.00013698,2]
[335705096,1724455771763,-3307.37,0.00013698,2]
[335705097,1724455771786,-3307.37,0.00013698,2]
[335705098,1724455771808,-3307.51632755,0.00013698,2]
[335705099,1724455771831,-500.0,0.00013698,2]
[335705100,1724455771858,-500.0,0.00013698,2]
[335705101,1724455771881,-1302.97,0.00013698,2]
[335705102,1724455771902,-500.0,0.00013698,2]
[335705103,1724455771926,-500.0,0.00013698,2]
[335705104,1724455771951,-793.07,0.00013698,2]
[335705105,1724455771975,-560.98,0.00013698,2]
[335705106,1724455771995,-500.0,0.00013698,2]
[335705107,1724455772017,-933.19,0.00013698,2]
[335705108,1724455772038,-500.0,0.00013698,2]
[335705109,1724455772060,-500.0,0.00013698,2]
[335705110,1724455772082,-1584.42,0.00013698,2]
[335705111,1724455772103,-500.0,0.00013698,2]
[335705112,1724455772127,-500.0,0.00013698,2]
[335705113,1724455772150,-6957.53,0.00013698,2]
[335705114,1724455772173,-1175.96,0.00013698,2]
[335705115,1724455772194,-500.0,0.00013698,2]
[335705116,1724455772214,-500.45729683,0.00013698,2]
[335705117,1724455772235,-500.0,0.00013698,2]
[335705118,1724455772256,-1164.46,0.00013698,2]
[335705119,1724455772278,-500.0,0.00013698,2]
[335705120,1724455772299,-500.0,0.00013698,2]
[335705121,1724455772509,-500.0,0.00013698,2]
[335705122,1724455772530,-500.0,0.00013698,2]
[335705123,1724455772552,-642.55,0.00013698,2]
[335705124,1724455772574,-500.0,0.00013698,2]
[335705125,1724455772594,-1399.53,0.00013698,2]
[335705126,1724455772616,-500.0,0.00013698,2]
[335705127,1724455772643,-500.0,0.00013698,2]
[335705128,1724455772664,-500.0,0.00013698,2]
[335705129,1724455772684,-500.0,0.00013698,2]
[335705130,1724455772706,-748.43,0.00013698,2]
[335705131,1724455772730,-500.0,0.00013698,2]
[335705132,1724455772753,-1565.08,0.00013698,2]
[335705133,1724455772776,-597.44,0.00013698,2]
[335705134,1724455772797,-4003.71,0.00013698,2]
[335705135,1724455772817,-658.12,0.00013698,2]
[335705136,1724455772841,-803.2,0.00013698,2]
[335705137,1724455772862,-500.0,0.00013698,2]
[335705138,1724455772893,-1095.7,0.00013698,2]
[335705139,1724455772915,-500.0,0.00013698,2]
[335705140,1724455772941,-500.0,0.00013698,2]
[335705141,1724455772966,-500.0,0.00013698,2]
[335705142,1724455772991,-666.77,0.00013698,2]
[335705143,1724455773012,-500.0,0.00013698,2]
[335705144,1724455773035,-500.0,0.00013698,2]
[335705145,1724455773056,-500.0,0.00013698,2]
[335705146,1724455773078,-500.0,0.00013698,2]
[335705147,1724455773099,-500.0,0.00013698,2]
[335705148,1724455773119,-500.0,0.00013698,2]
[335705149,1724455773141,-708.97,0.00013698,2]
[335705150,1724455773162,-500.0,0.00013698,2]
[335705151,1724455773184,-1571.59,0.00013698,2]
[335705152,1724455773206,-500.0,0.00013698,2]
[335705153,1724455773227,-1207.37,0.00013698,2]
[335705154,1724455773249,-500.0,0.00013698,2]
[335705155,1724455773270,-500.0,0.00013698,2]
[335705156,1724455773291,-1532.76,0.00013698,2]
[335705157,1724455773312,-504.5397436,0.00013698,2]
[335705158,1724455773339,-1174.83,0.00013698,2]
[335705159,1724455773361,-500.0,0.00013698,2]
[335705160,1724455773383,-519.23270273,0.00013698,2]
[335705161,1724455773405,-500.0,0.00013698,2]
[335705162,1724455773427,-500.0,0.00013698,2]
[335705163,1724455773448,-720.34,0.00013698,2]
[335705164,1724455773470,-500.0,0.00013698,2]
[335705165,1724455773492,-500.0,0.00013698,2]
[335705166,1724455773514,-642.17,0.00013698,2]
[335705167,1724455773536,-1427.05,0.00013698,2]
[335705168,1724455773559,-1198.7,0.00013698,2]
[335705169,1724455773581,-1000.0,0.00013698,2]
[335705170,1724455773603,-782.0,0.00013698,2]
[335705171,1724455773625,-500.0,0.00013698,2]
[335705172,1724455773646,-1855.57,0.00013698,2]
[335705173,1724455773669,-539.29807881,0.00013698,2]
[335705174,1724455773690,-566.08186482,0.00013698,2]
[335705175,1724455773711,-4017.04,0.00013698,2]
[335705176,1724455773733,-2290.88,0.00013698,2]
[335705177,1724455773754,-500.0,0.00013698,2]
[335705178,1724455773775,-4136.3,0.00013698,2]
[335705179,1724455773796,-500.0,0.00013698,2]
[335705180,1724455773817,-500.0,0.00013698,2]
[335705181,1724455773841,-500.0,0.00013698,2]
[335705182,1724455773862,-2077.0,0.00013698,2]
[335705183,1724455773884,-266.52883995,0.00013698,2]
[335705184,1724455773905,-500.0,0.00013698,2]
[335705185,1724455773929,-500.0,0.00013698,2]
[335705186,1724455773950,-862.83835129,0.00013698,2]
[335705187,1724455773972,-500.0,0.00013698,2]
[335705188,1724455773994,-757.07,0.00013698,2]
[335705189,1724455774017,-939.43,0.00013698,2]
[335705190,1724455774040,-500.0,0.00013698,2]
[335705191,1724455774061,-500.0,0.00013698,2]
[335705192,1724455774083,-906.89,0.00013698,2]
[335705193,1724455774105,-500.0,0.00013698,2]
[335705194,1724455774126,-500.0,0.00013698,2]
[335705195,1724455774151,-895.95,0.00013698,2]
[335705196,1724455774174,-500.0,0.00013698,2]
[335705197,1724455774196,-500.0,0.00013698,2]
[335705198,1724455774218,-312.54487476,0.00013698,2]
[335705199,1724455774240,-500.0,0.00013698,2]
[335705200,1724455774262,-500.0,0.00013698,2]
[335705201,1724455774283,-240.678103,0.00013699,2]
[335705202,1724455774305,-240.678103,0.00013699,2]
[335705203,1724455774342,-151.0,0.00013699,2]
[335705204,1724455774367,-151.0,0.00013699,2]
[335705205,1724455774391,-151.0,0.00013699,2]
[335705206,1724455774414,-151.0,0.00013699,2]
[335705207,1724455774438,-238.706342,0.00013699,2]
[335705208,1724455774461,-238.706342,0.00013699,2]
[335705209,1724455774484,-212.874862,0.00013699,2]
[335705210,1724455774507,-212.874862,0.00013699,2]
[335705211,1724455774531,-282.04414,0.00013699,2]
[335705212,1724455774554,-282.04414,0.00013699,2]
[335705213,1724455774577,-212.874862,0.00013699,2]
[335705214,1724455774600,-212.874862,0.00013699,2]
[335705215,1724455774840,-282.04414,0.00013699,2]
[335705216,1724455774863,-282.04414,0.00013699,2]
[335705217,1724455774888,-151.0,0.00013699,2]
[335705218,1724455774912,-151.0,0.00013699,2]
[335705219,1724455774936,-198.641182,0.00013699,2]
[335705220,1724455774959,-198.641182,0.00013699,2]
[335705221,1724455774983,-198.641182,0.00013699,2]
[335705222,1724455775006,-198.641182,0.00013699,2]
[335705223,1724455775036,-198.641182,0.00013699,2]
[335705224,1724455775060,-198.641182,0.00013699,2]
[335705225,1724455775083,-151.0,0.00013699,2]
[335705226,1724455775107,-151.0,0.00013699,2]
[335705227,1724455775131,-151.0,0.00013699,2]
[335705228,1724455775155,-151.0,0.00013699,2]
[335705229,1724455775179,-151.0,0.00013699,2]
[335705230,1724455775204,-151.0,0.00013699,2]
[335705231,1724455775227,-151.0,0.00013699,2]
[335705232,1724455775249,-151.0,0.00013699,2]
[335705233,1724455775273,-151.0,0.00013699,2]
[335705234,1724455775295,-310.0,0.00013699,2]
[335705235,1724455775318,-310.0,0.00013699,2]
[335705236,1724455775340,-310.0,0.00013699,2]
[335705237,1724455775363,-310.0,0.00013699,2]
[335705238,1724455775385,-310.0,0.00013699,2]
[335705239,1724455775408,-310.0,0.00013699,2]
[335705240,1724455775431,-310.0,0.00013699,2]
[335705241,1724455775453,-310.0,0.00013699,2]
[335705242,1724455775475,-310.0,0.00013699,2]
[335705243,1724455775497,-310.0,0.00013699,2]
[335705244,1724455775520,-407.78411,0.00013699,2]
[335705245,1724455775542,-925.476689,0.00013699,2]
[335705246,1724455775565,-925.476689,0.00013699,2]
[335705247,1724455775588,-925.476689,0.00013699,2]
[335705248,1724455775610,-925.476689,0.00013699,2]
[335705249,1724455775642,-925.476689,0.00013699,2]
[335705250,1724455775665,-925.476689,0.00013699,2]
[335705251,1724455775688,-151.0,0.00013699,2]
[335705252,1724455775710,-151.0,0.00013699,2]
[335705253,1724455775737,-151.0,0.00013699,2]
[335705254,1724455775760,-1839.864422,0.00013699,2]
[335705255,1724455775783,-1839.864422,0.00013699,2]
[335705256,1724455775805,-1839.864422,0.00013699,2]
[335705257,1724455775828,-1839.864422,0.00013699,2]
[335705258,1724455775855,-1839.864422,0.00013699,2]
[335705259,1724455775879,-1839.864422,0.00013699,2]
[335705260,1724455775901,-151.0,0.00013699,2]
[335705261,1724455775924,-151.0,0.00013699,2]
[335705262,1724455775947,-151.0,0.00013699,2]
[335705263,1724455775969,-151.0,0.00013699,2]
[335705264,1724455775990,-151.0,0.00013699,2]
[335705265,1724455776013,-151.0,0.00013699,2]
[335705266,1724455776037,-151.0,0.00013699,2]
[335705267,1724455776058,-151.0,0.00013699,2]
[335705268,1724455776080,-151.0,0.00013699,2]
[335705269,1724455776100,-151.0,0.00013699,2]
[335705270,1724455776125,-151.0,0.00013699,2]
[335705271,1724455776149,-151.0,0.00013699,2]
[335705272,1724455776172,-315.47376629,0.00013699,2]
[335705273,1724455778748,-500.0,0.00013698,2]
[335705274,1724455778783,-164.86546075,0.00013698,2]
[335705319,1724455832216,-158.615071,0.00012843,2]
[335705320,1724455832226,-158.615071,0.00012918,2]
[335705321,1724455832235,-158.615071,0.00012992,2]
[335705322,1724455832244,-158.615071,0.00013066,2]
[335705323,1724455832254,-158.615071,0.00013141,2]
[335705324,1724455832263,-158.615071,0.00013215,2]
[335705325,1724455832273,-158.615071,0.0001329,2]
[335705326,1724455832283,-158.615071,0.00013364,2]
[335705327,1724455832292,-158.615071,0.00013438,2]
[335705328,1724455832301,-158.615071,0.00013513,2]
[335705329,1724455832311,-3259.78522695,0.00013599,2]
[335705330,1724455832320,-468.935773,0.00013673,2]
[335705331,1724455832329,-330.30818799,0.00013673,2]
[335705332,1724455832339,-300.0,0.00013696,2]
[335705333,1724455832349,-300.0,0.00013696,2]
[335705334,1724455832359,-20561.69778637,0.00013697,2]
[335705363,1724455838069,-1165.1290326,0.00013697,2]
[335705365,1724455838080,-20701.16134234,0.00013697,2]
[335705367,1724455838089,-335.13453925,0.00013698,2]
[335705369,1724455838099,-500.0,0.00013698,2]
[335705371,1724455838109,-2445.7,0.00013698,2]
[335705372,1724455838118,-500.0,0.00013698,2]
[335705374,1724455838127,-500.0,0.00013698,2]
[335705376,1724455838136,-500.0,0.00013698,2]
[335705378,1724455838146,-500.0,0.00013698,2]
[335705380,1724455838155,-915.74,0.00013698,2]
[335705382,1724455838165,-500.0,0.00013698,2]
[335705384,1724455838174,-500.0,0.00013698,2]
[335705386,1724455838184,-500.0,0.00013698,2]
[335705390,1724455838194,-5782.26,0.00013698,2]
[335705393,1724455838203,-500.0,0.00013698,2]
[335705395,1724455838212,-500.0,0.00013698,2]
[335705397,1724455838222,-2003.92,0.00013698,2]
[335705399,1724455838231,-717.14,0.00013698,2]
[335705401,1724455838241,-500.0,0.00013698,2]
[335705403,1724455838250,-500.0,0.00013698,2]
[335705405,1724455838259,-320.39554735,0.00013698,2]
[335705407,1724455838268,-500.0,0.00013698,2]
[335705408,1724455838277,-500.0,0.00013698,2]
[335705411,1724455838296,-1023.48,0.00013698,2]
[335705413,1724455838307,-500.0,0.00013698,2]
[335705415,1724455838317,-500.0,0.00013698,2]
[335705417,1724455838327,-500.0,0.00013698,2]
[335705419,1724455838336,-2738.26,0.00013698,2]
[335705421,1724455838346,-500.0,0.00013698,2]
[335705424,1724455838355,-823.21,0.00013698,2]
[335705426,1724455838365,-500.0,0.00013698,2]
[335705428,1724455838374,-942.52,0.00013698,2]
[335705430,1724455838383,-725.43,0.00013698,2]
[335705432,1724455838393,-500.0,0.00013698,2]
[335705434,1724455838403,-500.0,0.00013698,2]
[335705436,1724455838412,-7927.67,0.00013698,2]
[335705438,1724455838422,-500.0,0.00013698,2]
[335705440,1724455838431,-1126.96,0.00013698,2]
[335705442,1724455838440,-502.13180334,0.00013698,2]
[335705444,1724455838450,-1021.12,0.00013698,2]
[335705446,1724455838460,-500.0,0.00013698,2]
[335705448,1724455838469,-500.0,0.00013698,2]
[335705450,1724455838479,-2813.88,0.00013698,2]
[335705452,1724455838488,-500.0,0.00013698,2]
[335705454,1724455838498,-627.64,0.00013698,2]
[335705456,1724455838508,-980.47,0.00013698,2]
[335705458,1724455838518,-1028.06,0.00013698,2]
[335705460,1724455838528,-501.05200541,0.00013698,2]
[335705462,1724455838537,-823.77,0.00013698,2]
[335705465,1724455838547,-537.6,0.00013698,2]
[335705467,1724455838557,-303.97484667,0.00013698,2]
[335705469,1724455838567,-10561.9,0.00013698,2]
[335705471,1724455838577,-717.24,0.00013698,2]
[335705473,1724455838586,-500.0,0.00013698,2]
[335705475,1724455838596,-500.0,0.00013698,2]
[335705477,1724455838606,-500.0,0.00013698,2]
[335705479,1724455838616,-746.15,0.00013698,2]
[335705481,1724455838625,-760.26,0.00013698,2]
[335705483,1724455838635,-500.0,0.00013698,2]
[335705485,1724455838645,-505.32442441,0.00013698,2]
[335705487,1724455838655,-1115.95,0.00013698,2]
[335705489,1724455838665,-4856.26,0.00013698,2]
[335705491,1724455838675,-806.72,0.00013698,2]
[335705493,1724455838685,-500.0,0.00013698,2]
[335705495,1724455838694,-500.0,0.00013698,2]
[335705497,1724455838704,-500.0,0.00013698,2]
[335705499,1724455838713,-303.97484667,0.00013698,2]
[335705501,1724455838723,-500.0,0.00013698,2]
[335705503,1724455838733,-1008.68,0.00013698,2]
[335705505,1724455838742,-693.16,0.00013698,2]
[335705507,1724455838751,-824.13,0.00013698,2]
[335705509,1724455838760,-1499.86,0.00013698,2]
[335705511,1724455838770,-150.88759461,0.00013698,2]
[335705513,1724455838780,-500.0,0.00013698,2]
[335705515,1724455838790,-1134.95,0.00013698,2]
[335705516,1724455838799,-500.0,0.00013698,2]
[335705518,1724455838809,-500.0,0.00013698,2]
[335705520,1724455838819,-2821.3,0.00013698,2]
[335705521,1724455838828,-500.0,0.00013698,2]
[335705522,1724455838839,-500.0,0.00013698,2]
[335705523,1724455838848,-500.0,0.00013698,2]
[335705524,1724455838858,-2168.66,0.00013698,2]
[335705525,1724455838871,-500.0,0.00013698,2]
[335705526,1724455838880,-500.0,0.00013698,2]
[335705527,1724455838889,-500.0,0.00013698,2]
[335705528,1724455838899,-1825.71715571,0.00013699,2]
[335705529,1724455838914,-2141.190922,0.00013699,2]
[335705530,1724455838929,-151.0,0.00013699,2]
[335705531,1724455838940,-2141.190922,0.00013699,2]